bitfinex/quotes_BTCUSD_20220207
["timestamp","ask_amount","ask_price","bid_price","bid_amount"]
[1644245209465,0.23976658,43282.0,43280.0,0.00069226]
[1644245209664,0.18195058,43282.0,43280.0,0.00069226]
[1644245210263,0.55692644,43281.0,43272.0,0.115621]
[1644245210567,0.30873867,43281.0,43273.0,0.23109]
[1644245210764,0.18195058,43282.0,43273.0,0.23109]
[1644245210964,0.18195058,43282.0,43275.0,0.057811]
[1644245211166,0.18195058,43282.0,43276.0,0.23107]
[1644245211624,0.66852727,43280.0,43276.0,0.20057]
[1644245211816,0.24042267,43278.0,43276.0,0.20057]
[1644245213617,0.36659094,43276.0,43275.0,0.00072894]
[1644245214015,0.36659094,43276.0,43271.0,0.015]
[1644245214219,0.36659094,43276.0,43273.0,0.00072895]
[1644245214521,0.36659094,43276.0,43267.0,0.00291626]
[1644245214522,0.325611,43272.0,43267.0,0.00291626]
[1644245214722,0.85,43274.0,43261.0,0.02]
[1644245214723,0.02183976,43269.0,43261.0,0.02]
[1644245214920,0.05784135,43266.0,43261.0,0.10876]
[1644245215124,0.383453,43263.0,43261.0,0.10876]
[1644245215367,0.93432144,43263.0,43261.0,0.24184]
[1644245215569,0.12562423,43268.0,43261.0,0.24184]
[1644245216368,0.24130223,43268.0,43261.0,0.24184]
[1644245216571,0.12562423,43268.0,43264.0,0.19034265]
[1644245216768,0.12562423,43268.0,43261.0,0.29184]
[1644245216968,0.12562423,43268.0,43262.0,0.00029844]
[1644245217168,0.12562423,43268.0,43261.0,0.29213844]
[1644245217772,0.12562423,43268.0,43262.0,0.00072618]
[1644245218171,0.35562423,43268.0,43262.0,0.00072618]
[1644245218374,0.02249943,43269.0,43268.0,0.5]
[1644245218575,0.02249943,43269.0,43268.0,0.8]
[1644245218777,0.00072109,43275.0,43269.0,0.8]
[1644245218979,0.00072109,43275.0,43274.0,0.05]
[1644245219220,0.00072109,43275.0,43274.0,0.44841224]
[1644245219418,0.00072109,43275.0,43274.0,0.49841224]
[1644245219621,0.7746,43294.0,43275.0,0.8]
[1644245219820,0.7746,43294.0,43283.0,0.045]
[1644245220019,0.7755,43296.0,43284.0,0.0425]
[1644245220422,0.005,43287.0,43284.0,0.0425]
[1644245220622,0.2363366,43286.0,43284.0,0.0425]
[1644245220819,0.02028579,43286.0,43284.0,0.0425]
[1644245221821,0.02028579,43286.0,43285.0,0.19913478]
[1644245222020,0.02028579,43286.0,43283.0,0.0389]
[1644245222224,0.02028579,43286.0,43281.0,0.00029844]
[1644245222225,0.005,43284.0,43281.0,0.00029844]
[1644245222420,0.02028579,43286.0,43283.0,0.12145714]
[1644245222862,0.02028579,43286.0,43280.0,0.04529844]
[1644245223063,0.02028579,43286.0,43283.0,0.057796]
[1644245223064,0.33393835,43286.0,43283.0,0.057796]
[1644245223662,0.5704466,43286.0,43281.0,0.00029844]
[1644245223862,0.5754466,43286.0,43280.0,0.115594]
[1644245224063,0.55516081,43286.0,43280.0,0.115594]
[1644245224471,0.55516081,43286.0,43275.0,0.00029844]
[1644245224472,0.005,43281.0,43275.0,0.00029844]
[1644245224668,0.17490827,43280.0,43275.0,0.045]
[1644245224865,0.14526794,43288.0,43275.0,0.045]
[1644245225066,0.416624,43298.0,43275.0,0.045]
[1644245225067,0.00065806,43280.0,43275.0,0.045]
[1644245225467,0.00065806,43280.0,43279.0,0.045]
[1644245225672,0.00065806,43280.0,43279.0,0.29319649]
[1644245225866,0.00065806,43280.0,43279.0,0.0839]
[1644245226069,0.17491,43299.0,43278.0,0.69299301]
[1644245226070,0.05,43296.0,43278.0,0.69299301]
[1644245226267,0.00053469,43282.0,43281.0,0.05]
[1644245226466,0.00053469,43282.0,43281.0,0.0389]
[1644245227122,0.16844386,43288.0,43278.0,0.126489]
[1644245227324,0.05,43286.0,43278.0,0.126489]
[1644245227523,0.23439346,43278.0,43275.0,0.190845]
[1644245227725,0.23439346,43278.0,43275.0,0.22177]
[1644245227726,0.05,43276.0,43275.0,0.22177]
[1644245228727,0.05,43276.0,43273.0,0.01950782]
[1644245229325,0.22304815,43275.0,43273.0,0.01950782]
[1644245229525,0.22304815,43275.0,43262.0,0.20540973]
[1644245229526,0.8,43274.0,43262.0,0.20540973]
[1644245229727,0.19464676,43266.0,43263.0,0.23114]
[1644245229925,0.05782614,43273.0,43263.0,0.23114]
[1644245230224,1.1695,43274.0,43263.0,0.23114]
[1644245230225,0.05,43270.0,43263.0,0.36422]
[1644245230465,0.20447477,43268.0,43265.0,0.02120896]
[1644245230666,0.05,43270.0,43265.0,0.02120896]
[1644245230868,0.19663268,43272.0,43265.0,0.02120896]
[1644245231066,0.000622,43271.0,43265.0,0.02120896]
[1644245231466,0.000622,43271.0,43266.0,0.23112]
[1644245231666,0.20272908,43271.0,43266.0,0.45294]
[1644245231865,0.050622,43271.0,43266.0,0.45294]
[1644245232065,0.05,43271.0,43266.0,0.45294]
[1644245232266,0.00062203,43271.0,43266.0,0.45365475]
[1644245232475,0.05,43267.0,43266.0,0.45365475]
[1644245232768,0.05,43267.0,43266.0,0.23183475]
[1644245233167,0.05,43267.0,43266.0,0.23112]
[1644245233371,0.37423657,43270.0,43266.0,0.23112]
[1644245233667,0.37423657,43270.0,43266.0,0.21612]
[1644245233868,0.05,43267.0,43266.0,0.2129036]
[1644245234118,0.05,43267.0,43266.0,0.2079036]
[1644245234311,0.37423657,43270.0,43266.0,0.2079036]
[1644245234710,0.05,43267.0,43266.0,0.2079036]
[1644245234911,0.37423657,43270.0,43266.0,0.2079036]
[1644245235515,0.05,43267.0,43266.0,0.2079036]
[1644245235712,0.00075299,43274.0,43266.0,0.2079036]
[1644245235713,0.05,43271.0,43266.0,0.2079036]
[1644245236113,0.05,43271.0,43266.0,0.1579036]
[1644245236515,0.05,43271.0,43266.0,0.1329036]
[1644245236715,0.2323157,43271.0,43265.0,0.08875]
[1644245237117,0.05,43266.0,43265.0,0.08875]
[1644245237520,0.35924698,43265.0,43261.0,0.02]
[1644245237720,0.11568528,43263.0,43261.0,0.02]
[1644245237970,0.05,43262.0,43261.0,0.02]
[1644245238171,0.24314536,43262.0,43261.0,0.02]
[1644245238374,0.24314536,43262.0,43260.0,0.00419493]
[1644245238375,0.8,43261.0,43260.0,0.00419493]
[1644245238575,0.23084489,43261.0,43260.0,0.00419493]
[1644245239173,0.24314536,43262.0,43260.0,0.00419493]
[1644245239375,0.20516751,43268.0,43259.0,0.005]
[1644245239574,0.20516751,43268.0,43258.0,0.11888582]
[1644245239575,0.16016751,43268.0,43258.0,0.11888582]
[1644245239773,0.04568623,43269.0,43261.0,0.005]
[1644245239974,0.04568623,43269.0,43263.0,0.005]
[1644245239975,0.00068623,43269.0,43263.0,0.005]
[1644245240173,0.00068623,43269.0,43260.0,0.005]
[1644245240373,0.00068623,43269.0,43259.0,0.0002973]
[1644245240374,0.02,43268.0,43263.0,0.005]
[1644245240575,0.02,43268.0,43265.0,0.115634]
[1644245240773,0.02,43268.0,43265.0,0.110634]
[1644245240973,0.02214835,43269.0,43265.0,0.110634]
[1644245240974,0.02214835,43269.0,43268.0,0.00782231]
[1644245241637,0.05787344,43281.0,43268.0,0.00782231]
[1644245241826,0.55138149,43279.0,43268.0,0.26125049]
[1644245242030,0.27706783,43277.0,43271.0,0.057819]
[1644245242226,0.33488967,43277.0,43271.0,0.057819]
[1644245242427,0.33488967,43277.0,43269.0,0.0002973]
[1644245242428,0.43488967,43277.0,43269.0,0.0002973]
[1644245242628,0.325611,43276.0,43268.0,0.02928443]
[1644245242827,0.483447,43276.0,43268.0,0.02928443]
[1644245243027,0.325611,43274.0,43268.0,0.02928443]
[1644245243227,0.52916784,43269.0,43268.0,0.02928443]
[1644245243528,0.43588959,43269.0,43268.0,0.02928443]
[1644245243732,0.43588959,43269.0,43266.0,0.0187214]
[1644245243733,0.325611,43267.0,43266.0,0.0187214]
[1644245243927,0.32643255,43267.0,43266.0,0.0187214]
[1644245244327,0.00082155,43267.0,43266.0,0.0187214]
[1644245245370,0.29501436,43282.0,43281.0,9.05245521]
[1644245245571,0.61353491,43282.0,43281.0,9.05245521]
[1644245245771,0.63663491,43282.0,43281.0,8.25944809]
[1644245246274,0.8639795,43282.0,43281.0,8.25944809]
[1644245246470,1.09076333,43282.0,43281.0,8.25944809]
[1644245246673,1.3614793,43282.0,43281.0,8.25944809]
[1644245247071,2.3498793,43282.0,43281.0,8.25944809]
[1644245247273,1.4114793,43282.0,43281.0,8.25944809]
[1644245247469,1.47727569,43282.0,43281.0,8.25944809]
[1644245247670,1.47727569,43282.0,43281.0,5.37734939]
[1644245247671,2.88567569,43282.0,43281.0,5.37734939]
[1644245247872,2.88567569,43282.0,43281.0,4.6833194]
[1644245247873,2.46567569,43282.0,43281.0,4.6833194]
[1644245248272,0.05783514,43279.0,43269.0,0.0002973]
[1644245248473,0.17351029,43280.0,43267.0,0.0002973]
[1644245248474,0.17353431,43275.0,43267.0,0.0002973]
[1644245248674,0.17353431,43275.0,43252.0,0.0002973]
[1644245248675,0.325611,43273.0,43252.0,0.0002973]
[1644245248875,0.325611,43273.0,43251.0,0.02]
[1644245248876,0.115703,43269.0,43251.0,0.02]
[1644245249122,0.00094,43266.0,43251.0,0.02]
[1644245249323,0.55442593,43265.0,43251.0,0.02]
[1644245249522,0.057861,43262.0,43251.0,0.02]
[1644245249723,0.05785793,43259.0,43251.0,0.02]
[1644245249922,0.325611,43261.0,43251.0,0.03938109]
[1644245249923,0.22731957,43258.0,43251.0,0.03938109]
[1644245250321,0.325611,43257.0,43252.0,0.00072351]
[1644245250525,0.22731957,43258.0,43252.0,0.00072351]
[1644245250925,0.7,43257.0,43251.0,0.0351046]
[1644245251125,0.54243672,43256.0,43251.0,0.0351046]
[1644245251327,0.99243672,43256.0,43251.0,0.0351046]
[1644245251536,0.325611,43254.0,43247.0,0.0002973]
[1644245251728,1.14498749,43252.0,43233.0,0.00083768]
[1644245251929,0.325611,43248.0,43242.0,0.0205873]
[1644245252128,0.364511,43248.0,43242.0,0.0205873]
[1644245252327,0.2310451,43247.0,43233.0,0.00083768]
[1644245252631,0.2310451,43247.0,43226.0,0.0006806]
[1644245252632,0.325611,43240.0,43226.0,0.0006806]
[1644245252877,0.11580175,43237.0,43226.0,0.0006806]
[1644245253069,0.21975792,43229.0,43226.0,0.0006806]
[1644245253266,0.625611,43236.0,43225.0,0.00083256]
[1644245253267,0.15021812,43228.0,43225.0,0.00083256]
[1644245253468,0.15021812,43228.0,43221.0,0.02152462]
[1644245253469,0.15021812,43228.0,43221.0,0.02120191]
[1644245253667,0.15021812,43228.0,43226.0,0.2693286]
[1644245253868,0.15021812,43228.0,43222.0,0.005126]
[1644245254169,0.15021812,43228.0,43221.0,0.01620191]
[1644245254366,0.21575471,43228.0,43221.0,0.01620191]
[1644245254569,0.21575471,43228.0,43225.0,0.05]
[1644245254570,0.15021812,43228.0,43225.0,0.05]
[1644245254772,0.15021812,43228.0,43226.0,0.26653973]
[1644245255077,0.15021812,43228.0,43224.0,0.0002587]
[1644245255268,0.15021812,43228.0,43225.0,0.00072326]
[1644245255470,0.2014128,43236.0,43227.0,0.095]
[1644245255672,0.2014128,43236.0,43234.0,0.045]
[1644245255868,0.1517237,43243.0,43234.0,0.045]
[1644245256068,0.1517237,43243.0,43231.0,0.045]
[1644245256069,0.1311364,43243.0,43231.0,0.045]
[1644245256270,0.1311364,43243.0,43236.0,0.045]
[1644245256468,0.1311364,43243.0,43236.0,0.00072312]
[1644245256914,0.1311364,43243.0,43240.0,0.045]
[1644245257115,0.1311364,43243.0,43237.0,0.05]
[1644245257514,0.196614,43242.0,43237.0,0.05]
[1644245257713,0.196614,43242.0,43239.0,0.04]
[1644245257915,0.196614,43242.0,43241.0,0.05]
[1644245258115,0.020184,43243.0,43241.0,0.05]
[1644245258116,0.020184,43243.0,43242.0,0.005119]
[1644245258315,0.020184,43243.0,43242.0,0.045119]
[1644245258515,0.020184,43243.0,43242.0,0.25306563]
[1644245259212,0.020184,43243.0,43240.0,0.00072307]
[1644245259815,0.020184,43243.0,43231.0,0.04]
[1644245260017,0.020184,43243.0,43239.0,0.00072309]
[1644245260018,0.32957569,43243.0,43239.0,0.00072309]
[1644245260218,0.32957569,43243.0,43239.0,0.00052309]
[1644245260219,0.335635,43240.0,43239.0,0.00052309]
[1644245260469,0.8,43239.0,43227.0,0.09]
[1644245260671,0.8,43239.0,43228.0,0.23133]
[1644245260866,0.91,43239.0,43228.0,0.23133]
[1644245261069,0.905,43239.0,43228.0,0.23133]
[1644245261367,0.325635,43238.0,43228.0,0.36451]
[1644245261570,0.29559336,43237.0,43228.0,0.36451]
[1644245261768,0.29559336,43237.0,43228.0,0.23133]
[1644245262070,0.325635,43236.0,43228.0,0.23133]
[1644245262268,0.27165434,43230.0,43228.0,0.23133]
[1644245262867,0.27165434,43230.0,43228.0,0.22633]
[1644245263067,0.01,43230.0,43228.0,0.22633]
[1644245263269,0.85967068,43243.0,43228.0,0.22633]
[1644245263270,0.11,43239.0,43228.0,0.22633]
[1644245263468,0.1,43234.0,43228.0,0.22633]
[1644245263670,0.00066586,43235.0,43228.0,0.22633]
[1644245264222,0.00066586,43235.0,43232.0,0.20630119]
[1644245264720,0.325635,43238.0,43232.0,0.20630119]
[1644245264917,0.01,43235.0,43231.0,0.00072319]
[1644245265119,0.00066592,43236.0,43231.0,0.00072319]
[1644245265120,0.20480471,43236.0,43231.0,0.00072319]
[1644245265320,0.22063885,43234.0,43231.0,0.00072319]
[1644245265520,0.36585351,43236.0,43231.0,0.00072319]
[1644245265717,0.425634,43235.0,43231.0,0.00072319]
[1644245265918,0.425634,43235.0,43228.0,0.4928948]
[1644245266217,0.425634,43235.0,43231.0,0.00072319]
[1644245266218,0.1,43235.0,43231.0,0.00072319]
[1644245266617,0.24497542,43234.0,43231.0,0.00072319]
[1644245266820,0.325634,43233.0,43231.0,0.00072319]
[1644245267020,0.325634,43233.0,43228.0,0.22633]
[1644245267223,0.1,43233.0,43227.0,0.04]
[1644245267620,0.1,43233.0,43227.0,0.035]
[1644245267621,0.21885612,43231.0,43227.0,0.035]
[1644245267866,0.1,43233.0,43227.0,0.035]
[1644245268059,0.12155597,43233.0,43227.0,0.035]
[1644245268459,0.12155597,43233.0,43226.0,0.00052864]
[1644245268460,0.057894,43227.0,43226.0,0.00052864]
[1644245268659,0.015,43228.0,43226.0,0.00052864]
[1644245268859,0.1,43232.0,43226.0,0.00052864]
[1644245269262,0.02155597,43233.0,43231.0,0.035]
[1644245269560,0.02155597,43233.0,43227.0,0.00029675]
[1644245269762,0.02155597,43233.0,43227.0,0.00072266]
[1644245269960,0.015,43228.0,43227.0,0.00072266]
[1644245270361,0.22102544,43230.0,43227.0,0.00072266]
[1644245270562,0.01566586,43235.0,43226.0,0.00052864]
[1644245270761,0.01566586,43235.0,43226.0,0.00125131]
[1644245270762,0.115,43235.0,43226.0,0.00125131]
[1644245270961,0.325634,43234.0,43226.0,0.00125131]
[1644245271163,0.015,43230.0,43226.0,0.00125131]
[1644245271812,0.325634,43229.0,43226.0,0.00052864]
[1644245272013,0.325634,43228.0,43226.0,0.25176246]
[1644245272212,0.01925074,43230.0,43226.0,0.25176246]
[1644245272419,0.0999,43238.0,43228.0,0.8]
[1644245272614,0.97103151,43243.0,43233.0,0.03]
[1644245272814,0.7439,43243.0,43233.0,0.08]
[1644245273013,0.7439,43243.0,43234.0,0.56008852]
[1644245273215,0.02094,43252.0,43238.0,0.03]
[1644245273418,0.057858,43255.0,43250.0,0.03]
[1644245273643,0.02,43259.0,43242.0,0.05]
[1644245273814,0.14027467,43268.0,43244.0,0.325634]
[1644245273815,0.20025959,43248.0,43244.0,0.325634]
[1644245274013,0.723,43258.0,43243.0,0.03]
[1644245274214,0.02072491,43255.0,43248.0,0.19828085]
[1644245274417,0.02,43249.0,43248.0,0.19828085]
[1644245274613,0.02,43249.0,43238.0,0.03]
[1644245274614,0.02,43249.0,43238.0,0.03029675]
[1644245274812,0.00020036,43253.0,43238.0,0.03029675]
[1644245275214,0.2507011,43251.0,43238.0,0.2387897]
[1644245275483,0.2507011,43251.0,43238.0,0.03029675]
[1644245275683,0.2507011,43251.0,43247.0,0.23136224]
[1644245275887,0.02,43248.0,43239.0,0.00029675]
[1644245276187,0.325634,43250.0,43238.0,0.00029675]
[1644245276188,0.02,43240.0,43238.0,0.00029675]
[1644245276485,0.52808972,43238.0,43235.0,0.0188239]
[1644245276684,0.325634,43238.0,43235.0,0.0188239]
[1644245276883,0.325634,43238.0,43236.0,0.26050168]
[1644245276884,0.48351362,43238.0,43236.0,0.26050168]
[1644245277086,0.00066592,43241.0,43237.0,0.03]
[1644245277587,0.00066592,43241.0,43238.0,0.325634]
[1644245277784,0.00066592,43241.0,43238.0,0.320634]
[1644245277984,0.057871,43245.0,43236.0,0.26050168]
[1644245278484,0.115737,43250.0,43240.0,0.03]
[1644245278485,0.00066592,43242.0,43240.0,0.03]
[1644245278884,0.00066592,43242.0,43241.0,0.05]
[1644245279136,0.02016029,43250.0,43240.0,0.03]
[1644245279327,0.02016029,43250.0,43249.0,0.25511436]
[1644245279723,0.01516029,43250.0,43249.0,0.25511436]
[1644245280324,0.07,43259.0,43249.0,0.25468797]
[1644245280325,0.05785436,43254.0,43249.0,0.25468797]
[1644245280525,0.00066592,43252.0,43249.0,0.25468797]
[1644245280725,0.00066592,43252.0,43249.0,0.24968797]
[1644245281432,0.02,43255.0,43249.0,0.24968797]
[1644245281623,0.78084979,43258.0,43249.0,0.24238797]
[1644245281825,0.00066592,43253.0,43247.0,0.03]
[1644245282027,0.00066592,43253.0,43252.0,0.03]
[1644245282230,0.00066592,43253.0,43252.0,0.3630295]
[1644245282525,0.00066592,43253.0,43252.0,0.48814625]
[1644245282728,0.0212474,43261.0,43252.0,0.53814625]
[1644245282968,0.0212474,43261.0,43256.0,0.22480973]
[1644245282969,0.22949456,43261.0,43256.0,0.22480973]
[1644245283168,0.0212474,43261.0,43253.0,0.08]
[1644245283371,0.0212474,43261.0,43253.0,0.05]
[1644245283372,1.74879124,43254.0,43253.0,0.05]
[1644245283571,0.0212474,43261.0,43253.0,0.05]
[1644245283868,0.0212474,43261.0,43253.0,0.13299374]
[1644245284069,0.00066592,43259.0,43253.0,0.13299374]
[1644245284268,0.00066592,43259.0,43254.0,0.24732852]
[1644245284470,0.00066592,43259.0,43257.0,0.03]
[1644245285171,0.01814545,43262.0,43256.0,0.03]
[1644245285375,0.00066592,43260.0,43259.0,0.08]
[1644245285572,0.00066592,43260.0,43259.0,0.443119]
[1644245286375,0.01994194,43269.0,43268.0,0.19913471]
[1644245286626,0.00066592,43262.0,43259.0,0.0426]
[1644245287223,0.00066592,43262.0,43260.0,0.03]
[1644245287421,0.00066592,43262.0,43259.0,0.0426]
[1644245287621,0.03994194,43269.0,43260.0,0.24382029]
[1644245287822,0.03994194,43269.0,43261.0,0.20601567]
[1644245287823,0.0002003,43263.0,43261.0,0.20601567]
[1644245288025,0.0002003,43263.0,43262.0,0.320491]
[1644245288223,0.0002003,43263.0,43262.0,0.370491]
[1644245288421,0.0002003,43263.0,43262.0,0.72176072]
[1644245288623,0.24720652,43276.0,43262.0,0.72176072]
[1644245288624,0.023,43279.0,43264.0,0.4]
[1644245288824,0.023,43279.0,43271.0,0.05]
[1644245289024,0.023,43279.0,43272.0,0.29874526]
[1644245289222,0.023,43279.0,43272.0,0.32874526]
[1644245289424,0.023,43279.0,43273.0,0.31358782]
[1644245289623,0.023,43279.0,43273.0,0.63398482]
[1644245289822,0.023,43279.0,43273.0,0.36323053]
[1644245290023,0.023,43279.0,43273.0,0.0426]
[1644245290224,0.023,43279.0,43273.0,0.0926]
[1644245290477,0.023,43279.0,43278.0,0.03]
[1644245290683,0.023,43279.0,43273.0,0.0426]
[1644245290684,0.038,43279.0,43273.0,0.0426]
[1644245290887,0.038,43279.0,43272.0,0.22268157]
[1644245290888,0.02,43274.0,43272.0,0.22268157]
[1644245291083,0.05782357,43278.0,43276.0,0.06533787]
[1644245291277,0.038,43279.0,43276.0,0.06533787]
[1644245291477,0.038,43279.0,43272.0,0.22268157]
[1644245291678,0.02,43273.0,43272.0,0.22268157]
[1644245291878,0.018,43279.0,43272.0,0.25268157]
[1644245292279,0.018,43279.0,43272.0,0.22268157]
[1644245292482,0.018,43279.0,43277.0,0.12892065]
[1644245292680,0.00066542,43278.0,43277.0,0.12892065]
[1644245292879,0.00066542,43278.0,43277.0,0.47928665]
[1644245293283,0.00066542,43278.0,43277.0,0.320366]
[1644245293284,0.02066542,43278.0,43277.0,0.320366]
[1644245293479,0.02066542,43278.0,43273.0,0.05]
[1644245293480,0.02,43278.0,43273.0,0.05]
[1644245293681,0.00089829,43274.0,43273.0,0.370391]
[1644245293880,0.08912,43274.0,43273.0,0.0926]
[1644245294116,0.17824,43274.0,43273.0,0.6566739]
[1644245294314,0.018,43279.0,43273.0,1.04577561]
[1644245294515,0.018,43279.0,43278.0,0.370352]
[1644245294714,0.018,43279.0,43278.0,0.320352]
[1644245295118,0.018,43279.0,43277.0,0.03910171]
[1644245295119,0.00066542,43281.0,43277.0,0.08910171]
[1644245295320,0.14494523,43293.0,43284.0,0.06658214]
[1644245295721,0.7953,43294.0,43286.0,0.01991541]
[1644245295923,0.7953,43294.0,43287.0,0.05]
[1644245295924,0.002,43294.0,43287.0,0.05]
[1644245296119,0.002,43294.0,43289.0,0.05]
[1644245296519,0.002,43294.0,43287.0,0.23968016]
[1644245296717,0.05780167,43293.0,43287.0,0.23968016]
[1644245297521,0.0006571,43292.0,43287.0,0.23968016]
[1644245297972,0.0006571,43292.0,43287.0,0.6080293]
[1644245298173,0.002,43294.0,43287.0,0.6080293]
[1644245298174,0.00020432,43294.0,43291.0,0.05]
[1644245298375,0.00020432,43294.0,43292.0,0.28447546]
[1644245298674,0.00020432,43294.0,43287.0,0.23968016]
[1644245299070,0.00020432,43294.0,43287.0,0.23468016]
[1644245299772,0.00020432,43294.0,43286.0,0.01991541]
[1644245299973,0.325621,43291.0,43286.0,0.01991541]
[1644245300183,0.625621,43291.0,43287.0,0.26070609]
[1644245300373,3.02015595,43291.0,43287.0,0.26070609]
[1644245300670,0.425621,43291.0,43287.0,0.26070609]
[1644245300871,0.425621,43291.0,43254.0,0.85691164]
[1644245300872,0.1996485,43282.0,43268.0,0.115633]
[1644245301077,0.1996485,43282.0,43260.0,20.0]
[1644245301078,0.05782316,43279.0,43260.0,20.0]
[1644245301381,0.115652,43280.0,43261.0,0.3]
[1644245301382,0.00094,43275.0,43261.0,0.3]
[1644245301618,0.0426,43274.0,43261.0,0.3]
[1644245301819,0.0883646,43272.0,43261.0,0.3]
[1644245302019,0.11568227,43270.0,43261.0,0.6003927]
[1644245302218,0.11568227,43270.0,43265.0,0.00072388]
[1644245302418,0.11567514,43269.0,43265.0,0.00072388]
[1644245302820,0.10942793,43269.0,43265.0,0.00072388]
[1644245303020,0.10942793,43269.0,43261.0,0.60489529]
[1644245303420,0.10942793,43269.0,43261.0,0.31917141]
[1644245303620,0.10942793,43269.0,43261.0,0.31417141]
[1644245304024,0.10942793,43269.0,43261.0,0.01877871]
[1644245304025,0.15942793,43269.0,43261.0,0.01877871]
[1644245304224,0.26113311,43262.0,43261.0,0.01877871]
[1644245304422,2.80544322,43262.0,43261.0,0.01877871]
[1644245304821,2.90544322,43262.0,43261.0,0.01877871]
[1644245305021,2.90544322,43262.0,43260.0,20.0]
[1644245305223,2.90544322,43262.0,43261.0,0.320495]
[1644245306065,2.90544322,43262.0,43261.0,0.320501]
[1644245306469,0.0426,43262.0,43261.0,0.80127828]
[1644245306672,0.02112451,43270.0,43263.0,0.05]
[1644245306866,0.02112451,43270.0,43264.0,0.67114477]
[1644245307065,0.02112451,43270.0,43264.0,0.62114477]
[1644245307265,0.02112451,43270.0,43264.0,0.320473]
[1644245307467,0.05783316,43269.0,43264.0,0.320473]
[1644245307665,0.05783316,43269.0,43261.0,0.27630293]
[1644245307666,0.17351416,43269.0,43261.0,0.27630293]
[1644245307865,0.05783316,43269.0,43261.0,0.27630293]
[1644245308267,1.94317787,43267.0,43263.0,0.00072391]
[1644245308471,1.94317787,43267.0,43264.0,0.320473]
[1644245308667,1.94317787,43267.0,43263.0,0.00072391]
[1644245308668,0.057838,43267.0,43263.0,0.00072391]
[1644245308869,0.057838,43267.0,43264.0,0.320474]
[1644245309320,0.17351216,43269.0,43264.0,0.320474]
[1644245309321,0.05783316,43269.0,43264.0,0.320474]
[1644245309523,0.05783316,43269.0,43263.0,0.00072391]
[1644245309719,0.97351316,43269.0,43260.0,20.0]
[1644245309919,1.07351316,43269.0,43260.0,20.0]
[1644245310122,0.0426,43268.0,43260.0,20.0]
[1644245310521,0.00094,43261.0,43260.0,18.1966]
[1644245310722,0.00094,43261.0,43260.0,11.30655221]
[1644245310723,0.101408,43261.0,43260.0,11.30655221]
[1644245310920,0.101408,43261.0,43254.0,0.01822381]
[1644245310921,0.70074165,43259.0,43254.0,0.01822381]
[1644245311119,0.70074165,43259.0,43242.0,0.00029651]
[1644245311120,0.325621,43256.0,43242.0,0.00029651]
[1644245311320,0.0426,43255.0,43237.0,0.00029651]
[1644245311533,0.325621,43254.0,43242.0,0.20290252]
[1644245311729,0.25275949,43251.0,43242.0,0.17790252]
[1644245311923,0.368221,43250.0,43246.0,0.00072411]
[1644245312322,0.1426,43250.0,43246.0,0.00072411]
[1644245312521,0.1426,43250.0,43242.0,0.17760601]
[1644245312722,0.01822381,43255.0,43249.0,0.29362445]
[1644245312971,0.01822381,43255.0,43253.0,0.02944662]
[1644245313170,0.01822381,43255.0,43249.0,0.26417783]
[1644245313171,0.01822381,43255.0,43250.0,0.320599]
[1644245313569,0.02055338,43253.0,43246.0,0.00029664]
[1644245313768,0.02055338,43253.0,43243.0,0.320649]
[1644245313968,0.02055338,43250.0,43243.0,0.320649]
[1644245314167,0.00555338,43250.0,43243.0,0.320649]
[1644245314370,0.00555338,43250.0,43247.0,0.20639444]
[1644245314571,0.00555338,43250.0,43248.0,0.320616]
[1644245315368,0.01822381,43255.0,43248.0,0.320616]
[1644245315568,0.00555338,43250.0,43249.0,0.2245728]
[1644245315767,0.01822381,43255.0,43249.0,0.5451778]
[1644245315972,0.01822381,43255.0,43251.0,0.04444662]
[1644245316169,0.01822381,43255.0,43252.0,0.32058]
[1644245316619,0.01822381,43255.0,43243.0,0.057845]
[1644245316620,0.00555338,43253.0,43244.0,0.00072417]
[1644245316819,0.01822381,43255.0,43244.0,0.00102081]
[1644245317017,0.00555338,43252.0,43244.0,0.00072417]
[1644245317221,0.00555338,43252.0,43245.0,0.320633]
[1644245317417,0.00555338,43252.0,43249.0,0.22224166]
[1644245317819,0.0426,43258.0,43249.0,0.22224166]
[1644245317820,0.0426,43258.0,43250.0,0.320598]
[1644245318019,0.12312,43261.0,43250.0,0.320594]
[1644245318020,0.00066083,43257.0,43250.0,0.320594]
[1644245318420,0.00066083,43257.0,43252.0,0.04444662]
[1644245318621,0.00066083,43257.0,43256.0,0.35490914]
[1644245318823,0.01835578,43261.0,43256.0,0.86504978]
[1644245319125,0.01835578,43261.0,43256.0,0.54450478]
[1644245319126,0.00066089,43259.0,43256.0,0.54450478]
[1644245319321,0.00066089,43259.0,43257.0,0.320535]
[1644245320126,0.00555338,43258.0,43257.0,0.320535]
[1644245320372,0.00066089,43260.0,43257.0,0.320535]
[1644245320567,0.00066089,43260.0,43258.0,0.08081738]
[1644245320768,0.00555338,43264.0,43260.0,0.35703911]
[1644245320972,0.00555338,43267.0,43260.0,0.00703911]
[1644245321970,0.325621,43266.0,43260.0,0.00703911]
[1644245322374,0.425621,43266.0,43265.0,0.08940869]
[1644245322770,0.1,43266.0,43260.0,0.00703911]
[1644245322972,0.00555338,43262.0,43260.0,0.00703911]
[1644245323171,0.325621,43261.0,43260.0,0.00703911]
[1644245323371,0.425621,43261.0,43260.0,0.00703911]
[1644245324814,0.325586,43268.0,43260.0,0.00703911]
[1644245325213,0.00065924,43263.0,43260.0,0.00703911]
[1644245325413,0.325586,43262.0,43256.0,0.07163066]
[1644245325613,0.325586,43261.0,43251.0,0.2418319]
[1644245325814,0.05,43261.0,43251.0,0.02155133]
[1644245326014,0.05,43265.0,43251.0,0.02082725]
[1644245326215,0.02312,43267.0,43251.0,0.02155131]
[1644245326216,0.22312,43267.0,43251.0,0.02155131]
[1644245326414,0.00065918,43262.0,43251.0,0.02155131]
[1644245326615,0.00065918,43262.0,43254.0,0.320669]
[1644245326816,0.00065918,43262.0,43255.0,0.26558726]
[1644245327018,0.00065918,43262.0,43259.0,0.05]
[1644245327217,0.00065918,43262.0,43261.0,0.05]
[1644245327415,0.0999,43266.0,43265.0,0.25893294]